bitfinex/quotes_BTCUSD_20250608
["timestamp","ask_amount","ask_price","bid_price","bid_amount"]
[1749344666096,6.16034547,105600.0,105590.0,0.00380345]
[1749344666318,6.16700284,105600.0,105590.0,0.00380345]
[1749344666537,6.16700331,105600.0,105590.0,0.00380345]
[1749344667846,6.16700353,105600.0,105590.0,0.00380345]
[1749344668057,6.16034547,105600.0,105590.0,0.00380345]
[1749344668496,6.16700334,105600.0,105590.0,0.00380345]
[1749344668719,6.16700328,105600.0,105590.0,0.00380345]
[1749344669564,6.16034547,105600.0,105590.0,0.00380345]
[1749344670194,6.16700513,105600.0,105590.0,0.00380345]
[1749344670402,6.16700512,105600.0,105590.0,0.00380345]
[1749344670855,6.16700513,105600.0,105590.0,0.00380345]
[1749344671341,6.16700512,105600.0,105590.0,0.00380345]
[1749344671877,6.16700514,105600.0,105590.0,0.00380345]
[1749344673585,6.16700504,105600.0,105590.0,0.00380345]
[1749344673788,6.16700502,105600.0,105590.0,0.00380345]
[1749344674719,6.16034547,105600.0,105590.0,0.00380345]
[1749344674949,6.16700502,105600.0,105590.0,0.00380345]
[1749344675421,6.16034547,105600.0,105590.0,0.00380345]
[1749344675653,6.16700502,105600.0,105590.0,0.00380345]
[1749344676631,6.16034547,105600.0,105590.0,0.00380345]
[1749344676834,6.16700502,105600.0,105590.0,0.00380345]
[1749344677215,6.16034547,105600.0,105590.0,0.00380345]
[1749344677418,6.16700502,105600.0,105590.0,0.00380345]
[1749344677617,6.16034547,105600.0,105590.0,0.00380345]
[1749344677819,6.16700502,105600.0,105590.0,0.00380345]
[1749344678025,6.16034547,105600.0,105590.0,0.00380345]
[1749344678220,6.16700502,105600.0,105590.0,0.00380345]
[1749344679231,6.16034547,105600.0,105590.0,0.00380345]
[1749344679438,6.16700502,105600.0,105590.0,0.00380345]
[1749344680073,6.16034547,105600.0,105590.0,0.00380345]
[1749344680274,6.16700497,105600.0,105590.0,0.00380345]
[1749344680485,6.16034547,105600.0,105590.0,0.00380345]
[1749344680686,6.16700497,105600.0,105590.0,0.00380345]
[1749344680891,6.16700496,105600.0,105590.0,0.00380345]
[1749344681650,6.16700493,105600.0,105590.0,0.00380345]
[1749344681848,6.16700489,105600.0,105590.0,0.00380345]
[1749344683395,6.18476337,105600.0,105590.0,0.00380345]
[1749344683608,6.1781039,105600.0,105590.0,0.00380345]
[1749344683812,6.1670049,105600.0,105590.0,0.00380345]
[1749344684016,6.17810395,105600.0,105590.0,0.00380345]
[1749344684703,6.18476318,105600.0,105590.0,0.00380345]
[1749344684911,6.18476316,105600.0,105590.0,0.00380345]
[1749344685321,6.18476314,105600.0,105590.0,0.00380345]
[1749344685521,6.16700483,105600.0,105590.0,0.00380345]
[1749344685903,6.18476313,105600.0,105590.0,0.00380345]
[1749344686109,6.18476303,105600.0,105590.0,0.00380345]
[1749344686295,6.18476302,105600.0,105590.0,0.00380345]
[1749344686970,6.18476295,105600.0,105590.0,0.00380345]
[1749344687168,6.17810351,105600.0,105590.0,0.00380345]
[1749344687781,6.16034547,105600.0,105590.0,0.00380345]
[1749344688193,6.18476131,105600.0,105590.0,0.00380345]
[1749344688553,6.18475929,105600.0,105590.0,0.00380345]
[1749344688974,6.16034547,105600.0,105590.0,0.00380345]
[1749344689175,6.17809767,105600.0,105590.0,0.00380345]
[1749344689471,6.16700253,105600.0,105590.0,0.00380345]
[1749344689680,6.16700252,105600.0,105590.0,0.00380345]
[1749344689885,6.18475469,105600.0,105590.0,0.00380345]
[1749344690516,6.18475467,105600.0,105590.0,0.00380345]
[1749344690743,6.18475462,105600.0,105590.0,0.00380345]
[1749344691380,6.16034547,105600.0,105590.0,0.00380345]
[1749344691793,6.18475407,105600.0,105590.0,0.00380345]
[1749344692418,6.18475314,105600.0,105590.0,0.00380345]
[1749344692633,6.16700145,105600.0,105590.0,0.00380345]
[1749344692840,6.16034547,105600.0,105590.0,0.00380345]
[1749344693018,6.17809475,105600.0,105590.0,0.00380345]
[1749344693270,6.17809457,105600.0,105590.0,0.00380345]
[1749344693479,6.18475048,105600.0,105590.0,0.00380345]
[1749344694092,6.17809457,105600.0,105590.0,0.00380345]
[1749344694302,6.18474998,105600.0,105590.0,0.00380345]
[1749344694548,6.16700087,105600.0,105590.0,0.00380345]
[1749344694758,6.18474862,105600.0,105590.0,0.00380345]
[1749344696022,6.18474846,105600.0,105590.0,0.00380345]
[1749344696229,6.16700071,105600.0,105590.0,0.00380345]
[1749344696434,6.18474804,105600.0,105590.0,0.00380345]
[1749344697528,6.18474497,105600.0,105590.0,0.00380345]
[1749344697732,6.18474473,105600.0,105590.0,0.00380345]
[1749344698166,6.17809038,105600.0,105590.0,0.00380345]
[1749344698375,6.18474472,105600.0,105590.0,0.00380345]
[1749344698598,6.16699978,105600.0,105590.0,0.00380345]
[1749344698802,6.18474462,105600.0,105590.0,0.00380345]
[1749344699004,6.18474457,105600.0,105590.0,0.00380345]
[1749344699499,6.18474458,105600.0,105590.0,0.00380345]
[1749344699738,6.18474433,105600.0,105590.0,0.00380345]
[1749344699967,6.16034547,105600.0,105590.0,0.00380345]
[1749344700167,6.18474369,105600.0,105590.0,0.00380345]
[1749344701416,6.21861971,105600.0,105590.0,0.00380345]
[1749344701620,0.2083526,105590.0,105580.0,0.0271]
[1749344701838,0.32249494,105590.0,105580.0,0.0271]
[1749344702104,0.32249518,105590.0,105580.0,0.0271]
[1749344702302,0.33322108,105590.0,105580.0,0.0271]
[1749344702516,0.35096362,105590.0,105580.0,0.0271]
[1749344702728,0.35761707,105590.0,105580.0,0.0271]
[1749344702985,0.35761707,105590.0,105580.0,0.012]
[1749344702986,0.38865792,105590.0,105580.0,0.012]
[1749344703195,0.4050575,105590.0,105580.0,0.012]
[1749344703398,0.40505739,105590.0,105580.0,0.012]
[1749344703643,0.38731528,105590.0,105580.0,0.013]
[1749344703858,0.38066193,105590.0,105580.0,0.012]
[1749344704073,0.37091529,105590.0,105580.0,0.012]
[1749344704216,0.38300404,105590.0,105580.0,0.012]
[1749344704416,0.37191524,105590.0,105580.0,0.012]
[1749344704618,0.38965741,105590.0,105580.0,0.012]
[1749344705188,0.38965739,105590.0,105580.0,0.012]
[1749344705567,4.50780691,105590.0,105580.0,0.012]
[1749344705804,4.51446023,105590.0,105580.0,0.012]
[1749344705985,4.49006493,105590.0,105580.0,0.012]
[1749344706194,4.50780695,105590.0,105580.0,0.012]
[1749344706387,4.49796078,105590.0,105580.0,0.012]
[1749344706586,4.49794911,105590.0,105580.0,0.0273]
[1749344706787,4.49794911,105590.0,105580.0,0.012]
[1749344706990,4.48021396,105590.0,105580.0,0.012]
[1749344707491,4.4912957,105590.0,105580.0,0.012]
[1749344707918,4.47356493,105590.0,105580.0,0.012]
[1749344708280,4.50779569,105590.0,105580.0,0.012]
[1749344708463,4.49006493,105590.0,105580.0,0.012]
[1749344708670,4.51444455,105590.0,105580.0,0.012]
[1749344708870,4.49671379,105590.0,105580.0,0.012]
[1749344709075,4.83671372,105590.0,105580.0,0.012]
[1749344709270,4.85444368,105590.0,105580.0,0.012]
[1749344709498,0.34,105570.0,105560.0,0.03610087]
[1749344709743,1.03645756,105570.0,105560.0,0.03917208]
[1749344710418,1.03645705,105570.0,105560.0,0.03917208]
[1749344710586,1.02980898,105570.0,105560.0,0.03917208]
[1749344710785,1.01872742,105570.0,105560.0,0.03926289]
[1749344710988,1.02980748,105570.0,105560.0,0.03926289]
[1749344711194,1.03645552,105570.0,105560.0,0.03926289]
[1749344711394,1.03645543,105570.0,105560.0,0.04026289]
[1749344711548,1.04618043,105570.0,105560.0,0.03926289]
[1749344711763,1.0395325,105570.0,105560.0,0.03926289]
[1749344712154,1.02844458,105570.0,105560.0,0.03926289]
[1749344712571,1.03951105,105570.0,105560.0,0.03926289]
[1749344712781,1.02844406,105570.0,105560.0,0.03926289]
[1749344713000,1.04614894,105570.0,105560.0,0.03926289]
[1749344713325,1.02844405,105570.0,105560.0,0.03926289]
[1749344713449,1.53102965,105570.0,105560.0,0.03926289]
[1749344713646,1.53766888,105570.0,105560.0,0.03926289]
[1749344714069,1.53102957,105570.0,105560.0,0.03926289]
[1749344714265,1.51996399,105570.0,105560.0,0.03926289]
[1749344714481,1.53766874,105570.0,105560.0,0.03926289]
[1749344715001,1.5133247,105570.0,105560.0,0.03926289]
[1749344715377,1.53766836,105570.0,105560.0,0.03926289]
[1749344715577,1.53102918,105570.0,105560.0,0.03926289]
[1749344715779,1.5133247,105570.0,105560.0,0.03926289]
[1749344715976,1.53766827,105570.0,105560.0,0.03926289]
[1749344716185,1.51996384,105570.0,105560.0,0.03926289]
[1749344716393,1.5133247,105570.0,105560.0,0.03926289]
[1749344716595,1.53102898,105570.0,105560.0,0.03926289]
[1749344716840,1.53766649,105570.0,105560.0,0.03926289]
[1749344717037,1.51996337,105570.0,105560.0,0.03926289]
[1749344717259,1.5133247,105570.0,105560.0,0.03926289]
[1749344717467,1.51996337,105570.0,105560.0,0.03926289]
[1749344717710,1.5133247,105570.0,105560.0,0.03926289]
[1749344717886,1.53766649,105570.0,105560.0,0.03926289]
[1749344718089,1.51996337,105570.0,105560.0,0.03926289]
[1749344718288,2.06616337,105570.0,105560.0,0.03926289]
[1749344718503,2.08386649,105570.0,105560.0,0.03926289]
[1749344718678,2.0838664,105570.0,105560.0,0.03926289]
[1749344718881,2.07722576,105570.0,105560.0,0.03926289]
[1749344719089,2.06616257,105570.0,105560.0,0.03926289]
[1749344719254,2.0838635,105570.0,105560.0,0.03926289]
[1749344719455,2.0595247,105570.0,105560.0,0.03926289]
[1749344719650,1.70710346,105570.0,105560.0,0.03926289]
[1749344719857,2.08430348,105570.0,105560.0,0.03926289]
[1749344720060,2.0599647,105570.0,105560.0,0.03926289]
[1749344720269,2.08430354,105570.0,105560.0,0.03926289]
[1749344720476,2.06660261,105570.0,105560.0,0.03926289]
[1749344720679,2.06660263,105570.0,105560.0,0.03926289]
[1749344720900,2.07766584,105570.0,105560.0,0.03926289]
[1749344721107,2.06660262,105570.0,105560.0,0.03926289]
[1749344721324,2.07766585,105570.0,105560.0,0.03926289]
[1749344721727,2.08430378,105570.0,105560.0,0.03926289]
[1749344721980,2.08429997,105570.0,105560.0,0.03926289]
[1749344722309,2.0599647,105570.0,105560.0,0.03926289]
[1749344722511,2.0843,105570.0,105560.0,0.03926289]
[1749344722632,2.0599647,105570.0,105560.0,0.03926289]
[1749344722837,2.0776631,105570.0,105560.0,0.03926289]
[1749344723039,2.0599647,105570.0,105560.0,0.03926289]
[1749344723249,2.0843,105570.0,105560.0,0.03926289]
[1749344723458,2.0666016,105570.0,105560.0,0.03926289]
[1749344723674,2.0776631,105570.0,105560.0,0.03926289]
[1749344723873,1.7071,105570.0,105560.0,0.03926289]
[1749344724070,2.06708037,105570.0,105560.0,0.03926289]
[1749344724276,2.07813984,105570.0,105560.0,0.03926289]
[1749344724509,2.08477551,105570.0,105560.0,0.03926289]
[1749344725134,2.06708037,105570.0,105560.0,0.03926289]
[1749344725354,2.08477551,105570.0,105560.0,0.03926289]
[1749344725549,2.07813984,105570.0,105560.0,0.03926289]
[1749344725750,2.07813613,105570.0,105560.0,0.03926289]
[1749344725941,2.11324341,105570.0,105560.0,0.03926289]
[1749344726338,2.09555198,105570.0,105560.0,0.03926289]
[1749344726541,2.10660913,105570.0,105560.0,0.03926289]
[1749344726766,2.11324341,105570.0,105560.0,0.03926289]
[1749344726947,2.10660913,105570.0,105560.0,0.03926289]
[1749344727187,2.11324341,105570.0,105560.0,0.03926289]
[1749344727360,2.10660913,105570.0,105560.0,0.03926289]
[1749344727561,2.11324224,105570.0,105560.0,0.03926289]
[1749344728055,2.10660891,105570.0,105560.0,0.03926289]
[1749344728262,2.0889177,105570.0,105560.0,0.03678289]
[1749344728531,2.10660891,105570.0,105560.0,0.03678289]
[1749344728707,2.0889177,105570.0,105560.0,0.03678289]
[1749344728922,2.11324312,105570.0,105560.0,0.03678289]
[1749344729739,2.11324814,105570.0,105560.0,0.03678289]
[1749344729910,2.09555327,105570.0,105560.0,0.03678289]
[1749344730231,2.11324814,105570.0,105560.0,0.03678289]
[1749344730636,2.0889177,105570.0,105560.0,0.03678289]
[1749344730814,2.10663093,105570.0,105560.0,0.03678289]
[1749344731035,2.11327339,105570.0,105560.0,0.03678289]
[1749344731222,2.09556016,105570.0,105560.0,0.03678289]
[1749344731381,2.11327339,105570.0,105560.0,0.03678289]
[1749344731587,2.09556016,105570.0,105560.0,0.03678289]
[1749344731786,2.10663093,105570.0,105560.0,0.03678289]
[1749344732398,2.11327343,105570.0,105560.0,0.03678289]
[1749344732772,2.09556017,105570.0,105560.0,0.03678289]
[1749344733262,2.11327343,105570.0,105560.0,0.03678289]
[1749344733812,2.09556017,105570.0,105560.0,0.03678289]
[1749344733957,2.10663096,105570.0,105560.0,0.03678289]
[1749344734157,2.11327343,105570.0,105560.0,0.03678289]
[1749344734389,2.10663096,105570.0,105560.0,0.03678289]
[1749344734744,2.0889177,105570.0,105560.0,0.03678289]
[1749344735150,2.10663096,105570.0,105560.0,0.02058289]
[1749344735284,2.0889177,105570.0,105560.0,0.02058289]
[1749344735489,2.11327343,105570.0,105560.0,0.02058289]
[1749344735699,2.10663096,105570.0,105560.0,0.00528289]
[1749344735899,2.0889177,105570.0,105560.0,0.00528289]
[1749344736097,2.09556017,105570.0,105560.0,0.00528289]
[1749344736524,2.09557047,105570.0,105560.0,0.00528289]
[1749344736719,2.10665843,105570.0,105560.0,0.00528289]
[1749344736952,2.1133112,105570.0,105560.0,0.00528289]
[1749344737332,2.1051177,105570.0,105560.0,0.00528289]
[1749344737935,2.12950995,105570.0,105560.0,0.00528289]
[1749344738133,2.1051177,105570.0,105560.0,0.00528289]
[1749344738329,2.09557013,105570.0,105560.0,0.00528289]
[1749344738598,2.0889177,105570.0,105560.0,0.00528289]
[1749344738814,2.11330995,105570.0,105560.0,0.00528289]
[1749344739440,2.11331005,105570.0,105560.0,0.00528289]
[1749344739652,2.11329202,105570.0,105560.0,0.00528289]
[1749344739839,2.11329194,105570.0,105560.0,0.00528289]
[1749344740111,2.11329192,105570.0,105560.0,0.00528289]
[1749344740313,2.11329197,105570.0,105560.0,0.00528289]
[1749344740486,2.11329171,105570.0,105560.0,0.00528289]
[1749344740691,2.0889177,105570.0,105560.0,0.00528289]
[1749344740895,2.12949195,105570.0,105560.0,0.00528289]
[1749344741466,2.12949196,105570.0,105560.0,0.00528289]
[1749344741657,6.25429494,105570.0,105560.0,0.00528289]
[1749344741864,6.25429027,105570.0,105560.0,0.00528289]
[1749344742089,6.23656694,105570.0,105560.0,0.00528289]
[1749344742299,6.24764402,105570.0,105560.0,0.00528289]
[1749344742503,6.23656693,105570.0,105560.0,0.00528289]
[1749344742655,6.25429022,105570.0,105560.0,0.00528289]
[1749344742845,6.23809022,105570.0,105560.0,0.00528289]
[1749344743053,6.23144399,105570.0,105560.0,0.00528289]
[1749344743451,6.23809003,105570.0,105560.0,0.00528289]
[1749344743660,6.23144399,105570.0,105560.0,0.00528289]
[1749344743867,6.2314435,105570.0,105560.0,0.00528289]
[1749344744087,6.23808955,105570.0,105560.0,0.00528289]
[1749344744699,6.2380895,105570.0,105560.0,0.00528289]
[1749344744936,6.22036675,105570.0,105560.0,0.00528289]
[1749344745378,6.23144342,105570.0,105560.0,0.00528289]
[1749344745780,6.22036672,105570.0,105560.0,0.00528289]
[1749344745985,6.23808944,105570.0,105560.0,0.00528289]
[1749344746191,6.22036672,105570.0,105560.0,0.00528289]
[1749344746395,6.25428944,105570.0,105560.0,0.00528289]
[1749344747015,6.25428946,105570.0,105560.0,0.00528289]
[1749344747220,6.24764342,105570.0,105560.0,0.00528289]
[1749344747422,6.23656672,105570.0,105560.0,0.00528289]
[1749344747701,6.25428945,105570.0,105560.0,0.00528289]
[1749344748312,6.2299207,105570.0,105560.0,0.00528289]
[1749344748520,6.24764492,105570.0,105560.0,0.00528289]
[1749344748921,6.23656728,105570.0,105560.0,0.00528289]
[1749344749120,6.24764492,105570.0,105560.0,0.00528289]
[1749344749242,6.23656731,105570.0,105560.0,0.00528289]
[1749344749450,6.2542917,105570.0,105560.0,0.00528289]
[1749344749649,6.24764511,105570.0,105560.0,0.00528289]
[1749344749852,6.25429178,105570.0,105560.0,0.00528289]
[1749344750066,6.25429179,105570.0,105560.0,0.00528289]
[1749344750266,6.25429174,105570.0,105560.0,0.00528289]
[1749344750493,6.2299207,105570.0,105560.0,0.00528289]
[1749344750775,6.2542915,105570.0,105560.0,0.00528289]
[1749344750979,6.24764492,105570.0,105560.0,0.00528289]
[1749344751280,6.23656728,105570.0,105560.0,0.00528289]
[1749344751487,6.2380915,105570.0,105560.0,0.00528289]
[1749344752113,6.2380933,105570.0,105560.0,0.00528289]
[1749344752443,6.23809327,105570.0,105560.0,0.00528289]
[1749344752655,6.2203678,105570.0,105560.0,0.00528289]
[1749344753014,6.2137207,105570.0,105560.0,0.00528289]
[1749344753217,6.2380933,105570.0,105560.0,0.00528289]
[1749344753421,6.22036777,105570.0,105560.0,0.00528289]
[1749344753565,6.23144622,105570.0,105560.0,0.00528289]
[1749344753770,6.23809329,105570.0,105560.0,0.00528289]
[1749344754583,6.2137207,105570.0,105560.0,0.00528289]
[1749344754780,6.23809329,105570.0,105560.0,0.00528289]
[1749344755637,6.23144622,105570.0,105560.0,0.00528289]
[1749344755888,6.22036777,105570.0,105560.0,0.00528289]
[1749344756102,6.23809329,105570.0,105560.0,0.00528289]
[1749344756332,6.2137207,105570.0,105560.0,0.00528289]
[1749344756548,6.23809329,105570.0,105560.0,0.00528289]
[1749344757218,6.2137207,105570.0,105560.0,0.00528289]
[1749344757395,6.23144622,105570.0,105560.0,0.00528289]
[1749344757607,6.2137207,105570.0,105560.0,0.00528289]
[1749344757818,6.23809413,105570.0,105560.0,0.00528289]
[1749344758024,6.23144846,105570.0,105560.0,0.00528289]
[1749344758243,6.22036861,105570.0,105560.0,0.00528289]
[1749344758663,6.23809637,105570.0,105560.0,0.00528289]
[1749344758861,6.23144846,105570.0,105560.0,0.00528289]
[1749344759065,6.22036861,105570.0,105560.0,0.00528289]
[1749344759322,6.23809637,105570.0,105560.0,0.00528289]
[1749344759530,6.23146139,105570.0,105560.0,0.00528289]
[1749344759736,6.2137207,105570.0,105560.0,0.00528289]
[1749344759937,6.23146139,105570.0,105560.0,0.00528289]
[1749344760123,6.22037345,105570.0,105560.0,0.00528289]
[1749344760292,6.23811414,105570.0,105560.0,0.00528289]
[1749344760675,6.23146139,105570.0,105560.0,0.00528289]
[1749344760875,6.24696139,105570.0,105560.0,0.00528289]
[1749344761080,6.25361415,105570.0,105560.0,0.00528289]
[1749344761454,6.2292207,105570.0,105560.0,0.00528289]
[1749344761701,6.25361416,105570.0,105560.0,0.00528289]
[1749344761873,6.2469614,105570.0,105560.0,0.00528289]
[1749344762077,6.24696154,105570.0,105560.0,0.00528289]
[1749344762281,6.25361435,105570.0,105560.0,0.00528289]
[1749344762526,6.24696154,105570.0,105560.0,0.00528289]
[1749344762799,6.2292207,105570.0,105560.0,0.00528289]
[1749344762991,6.25361441,105570.0,105560.0,0.00528289]
[1749344763197,6.25361442,105570.0,105560.0,0.00528289]
[1749344763398,6.25361448,105570.0,105560.0,0.00528289]
[1749344763655,6.25361449,105570.0,105560.0,0.00528289]
[1749344763846,6.23811452,105570.0,105560.0,0.00528289]
[1749344764605,6.23146166,105570.0,105560.0,0.00528289]
[1749344765070,6.22037356,105570.0,105560.0,0.00528289]
[1749344765269,6.2137207,105570.0,105560.0,0.00528289]
[1749344765478,6.23811452,105570.0,105560.0,0.00528289]
[1749344766133,6.2203731,105570.0,105560.0,0.00528289]
[1749344766307,6.23146044,105570.0,105560.0,0.00528289]
[1749344766535,6.23811284,105570.0,105560.0,0.00528289]
[1749344767091,6.2203731,105570.0,105560.0,0.00528289]
[1749344767297,6.23811285,105570.0,105560.0,0.00528289]
[1749344767926,6.23811284,105570.0,105560.0,0.00528289]
[1749344768559,6.23146044,105570.0,105560.0,0.00528289]
[1749344769075,6.23811285,105570.0,105560.0,0.00528289]
[1749344769485,6.23811277,105570.0,105560.0,0.00528289]
[1749344769691,6.23146045,105570.0,105560.0,0.00528289]
[1749344770025,6.23146023,105570.0,105560.0,0.00528289]
[1749344770222,6.2137207,105570.0,105560.0,0.00528289]
[1749344770468,6.22037302,105570.0,105560.0,0.00528289]
[1749344770674,6.23811254,105570.0,105560.0,0.00528289]
[1749344771506,6.23811217,105570.0,105560.0,0.00528289]
[1749344772082,6.23145995,105570.0,105560.0,0.00528289]
[1749344772285,6.23811217,105570.0,105560.0,0.00528289]
[1749344772475,5.86043217,105570.0,105560.0,0.00528289]
[1749344772698,1.73562917,105570.0,105560.0,0.02078289]
[1749344772922,1.73562917,105570.0,105560.0,0.03638289]
[1749344772923,2.11190917,105570.0,105560.0,0.03638289]
[1749344773331,2.11190397,105570.0,105560.0,0.03638289]
[1749344773539,2.0875177,105570.0,105560.0,0.03638289]
[1749344773751,1.72897318,105570.0,105560.0,0.03638289]
[1749344774112,2.11198398,105570.0,105560.0,0.03638289]
[1749344774879,2.09424851,105570.0,105560.0,0.03638289]
[1749344775079,2.11198401,105570.0,105560.0,0.03638289]
[1749344775290,2.09424847,105570.0,105560.0,0.03638289]
[1749344775507,2.10533312,105570.0,105560.0,0.02078289]
[1749344775705,1.82378415,105570.0,105560.0,0.02078289]
[1749344775911,2.11546413,105570.0,105560.0,0.02078289]
[1749344776112,2.11546376,105570.0,105560.0,0.02078289]
[1749344776760,2.0910777,105570.0,105560.0,0.02078289]
[1749344776958,2.10881205,105570.0,105560.0,0.02078289]
[1749344777183,2.09780808,105570.0,105560.0,0.02078289]
[1749344777386,2.11554236,105570.0,105560.0,0.02078289]
[1749344777719,2.11554234,105570.0,105560.0,0.02078289]
[1749344778153,2.11554209,105570.0,105560.0,0.02078289]
[1749344778395,2.08702903,105570.0,105560.0,0.03638289]
[1749344778636,2.06929519,105570.0,105560.0,0.03638289]
[1749344778838,2.0626447,105570.0,105560.0,0.03638289]
[1749344779040,2.08703006,105570.0,105560.0,0.03638289]
[1749344779214,2.08703005,105570.0,105560.0,0.03638289]
[1749344779418,2.11550105,105570.0,105560.0,0.03638289]
[1749344780370,2.10884324,105570.0,105560.0,0.03638289]
[1749344780532,2.11549105,105570.0,105560.0,0.03638289]
[1749344780709,2.0911157,105570.0,105560.0,0.03638289]
[1749344780913,2.09776352,105570.0,105560.0,0.03638289]
[1749344781321,2.11549105,105570.0,105560.0,0.03638289]
[1749344781525,2.11549093,105570.0,105560.0,0.03638289]
[1749344781987,2.10884225,105570.0,105560.0,0.03638289]
[1749344782181,2.0911157,105570.0,105560.0,0.03638289]
[1749344782380,2.10884175,105570.0,105560.0,0.03638289]
[1749344782585,2.09776291,105570.0,105560.0,0.03638289]
[1749344782790,2.11548743,105570.0,105560.0,0.03638289]
[1749344783404,1.73560663,105570.0,105560.0,0.03638289]
[1749344783618,2.09517384,105570.0,105560.0,0.03638289]
[1749344783822,2.08852781,105570.0,105560.0,0.03638289]
[1749344784030,2.07745088,105570.0,105560.0,0.03638289]
[1749344784232,2.09517344,105570.0,105560.0,0.03638289]
[1749344784441,2.09517342,105570.0,105560.0,0.03638289]
[1749344784644,2.08852731,105570.0,105560.0,0.03638289]
[1749344784895,2.09517328,105570.0,105560.0,0.03638289]
[1749344785646,2.09517063,105570.0,105560.0,0.03638289]
[1749344785879,2.08852479,105570.0,105560.0,0.03638289]
[1749344786081,2.09516964,105570.0,105560.0,0.03638289]
[1749344786217,2.0708047,105570.0,105560.0,0.03638289]
[1749344786423,2.09516964,105570.0,105560.0,0.03638289]
[1749344786990,2.09516985,105570.0,105560.0,0.03638289]
[1749344787207,2.08852487,105570.0,105560.0,0.03638289]
[1749344787613,2.09516993,105570.0,105560.0,0.03638289]
[1749344788194,2.08852487,105570.0,105560.0,0.03638289]
[1749344788441,2.09516994,105570.0,105560.0,0.03638289]
[1749344789114,2.09516587,105570.0,105560.0,0.03638289]
[1749344789335,2.08852192,105570.0,105560.0,0.03638289]
[1749344789578,2.09516575,105570.0,105560.0,0.03638289]
[1749344789783,2.08852184,105570.0,105560.0,0.03638289]
[1749344789985,2.09516578,105570.0,105560.0,0.03638289]
[1749344790311,2.09516578,105570.0,105560.0,0.00528289]
[1749344790512,2.09516578,105570.0,105560.0,0.02078289]
[1749344790700,2.09516578,105570.0,105560.0,0.03638289]
[1749344790899,2.09516576,105570.0,105560.0,0.03638289]
[1749344791318,2.08852183,105570.0,105560.0,0.03638289]
[1749344791523,2.0708047,105570.0,105560.0,0.03638289]
[1749344791964,2.09516614,105570.0,105560.0,0.03638289]
[1749344792389,2.09516656,105570.0,105560.0,0.03638289]
[1749344792806,2.08852224,105570.0,105560.0,0.03638289]
[1749344793358,2.0708047,105570.0,105560.0,0.03638289]
[1749344793541,2.08852168,105570.0,105560.0,0.00528289]
[1749344793753,2.12319744,105570.0,105560.0,0.00528289]
[1749344793972,1.82791744,105570.0,105560.0,0.00528289]
[1749344794192,2.12327713,105570.0,105560.0,0.00528289]
[1749344794421,2.12327711,105570.0,105560.0,0.00528289]
[1749344794641,2.12327702,105570.0,105560.0,0.00528289]
[1749344794872,2.1232768,105570.0,105560.0,0.00528289]
[1749344795086,2.11663314,105570.0,105560.0,0.00528289]
[1749344795302,2.10556036,105570.0,105560.0,0.00528289]
[1749344795522,2.11663314,105570.0,105560.0,0.00528289]
[1749344795755,2.10556036,105570.0,105560.0,0.00528289]
[1749344795954,2.10556094,105570.0,105560.0,0.00528289]
[1749344796154,2.12327893,105570.0,105560.0,0.00528289]
[1749344796355,2.0989167,105570.0,105560.0,0.00528289]
[1749344796610,2.0989167,105570.0,105540.0,0.06171879]
[1749344796611,0.54843138,105550.0,105540.0,0.06171879]
[1749344796766,0.96455092,105550.0,105540.0,0.01773791]
[1749344796951,0.9468345,105550.0,105540.0,0.01773791]
[1749344797154,0.96455075,105550.0,105540.0,0.03333791]
[1749344797355,0.9645507,105550.0,105540.0,0.03333791]
[1749344797848,0.96453683,105550.0,105540.0,0.03333791]
[1749344798176,0.94019086,105550.0,105540.0,0.03633791]
[1749344798380,0.94019086,105550.0,105540.0,0.04521161]
[1749344798746,0.96453678,105550.0,105540.0,0.04521161]
[1749344798931,0.94019086,105550.0,105540.0,0.03633791]
[1749344799144,0.94683064,105550.0,105540.0,0.03633791]
[1749344799292,0.94019086,105550.0,105540.0,0.03633791]
[1749344799491,0.95789694,105550.0,105540.0,0.03633791]
[1749344799707,0.94019086,105550.0,105540.0,0.03633791]
[1749344799907,0.96453672,105550.0,105540.0,0.03633791]
[1749344800462,0.96453673,105550.0,105540.0,0.03633791]
[1749344801130,0.96453592,105550.0,105540.0,0.03633791]
[1749344801535,0.95789636,105550.0,105540.0,0.03633791]
[1749344801739,0.94683042,105550.0,105540.0,0.03633791]
[1749344801939,0.95789636,105550.0,105540.0,0.03633791]
[1749344802353,0.94019086,105550.0,105540.0,0.03633791]
[1749344802559,0.94683042,105550.0,105540.0,0.03633791]
[1749344802759,0.96453599,105550.0,105540.0,0.03633791]
[1749344802958,0.95789428,105550.0,105540.0,0.03633791]
[1749344803094,0.94019086,105550.0,105540.0,0.03633791]
[1749344803647,0.95789438,105550.0,105540.0,0.03633791]
[1749344803990,0.94019086,105550.0,105540.0,0.03633791]
[1749344804398,0.95789438,105550.0,105540.0,0.03633791]
[1749344804818,0.94019086,105550.0,105540.0,0.03633791]
[1749344805024,0.01770352,105550.0,105540.0,0.70484202]
[1749344805222,1.06489887,105570.0,105550.0,0.22737857]
[1749344805423,1.26505548,105570.0,105560.0,0.09761375]
[1749344805623,1.35737548,105570.0,105560.0,0.13546427]
[1749344805868,1.16792773,105570.0,105560.0,0.28712089]
[1749344806043,1.14898342,105570.0,105560.0,0.34387554]
[1749344806246,1.15845535,105570.0,105560.0,0.34387554]
[1749344806443,1.14898333,105570.0,105560.0,0.34387554]
[1749344806646,1.13004,105570.0,105560.0,0.34387554]
[1749344806845,1.04719175,105570.0,105560.0,0.34387554]
[1749344807049,1.13951175,105570.0,105560.0,0.34387554]
[1749344808481,1.14898368,105570.0,105560.0,0.34387554]
[1749344808902,1.14898368,105570.0,105560.0,0.28712089]
[1749344809109,1.14898377,105570.0,105560.0,0.28712089]
[1749344809736,1.14898368,105570.0,105560.0,0.28712089]
[1749344810506,1.14898368,105570.0,105560.0,0.31544356]
[1749344810959,1.13951167,105570.0,105560.0,0.31544356]
[1749344811155,1.14898342,105570.0,105560.0,0.31544356]
[1749344811354,1.15845544,105570.0,105560.0,0.31544356]
[1749344812141,1.16792764,105570.0,105560.0,0.31544356]
[1749344812349,1.16792764,105570.0,105560.0,0.28712089]
[1749344812557,1.16792755,105570.0,105560.0,0.31543144]
[1749344813640,1.17739975,105570.0,105560.0,0.31543144]
[1749344814425,1.16792755,105570.0,105560.0,0.31543144]
[1749344814604,1.17739975,105570.0,105560.0,0.31543144]
[1749344817559,1.35737637,105570.0,105560.0,0.30595879]
[1749344817765,1.34790435,105570.0,105560.0,0.31543162]
[1749344817979,1.1584566,105570.0,105560.0,0.32490427]
[1749344818870,1.34790435,105570.0,105560.0,0.31543162]
[1749344819090,1.34790435,105570.0,105560.0,0.27759519]
[1749344819302,1.1584566,105570.0,105560.0,0.28706784]
[1749344819541,1.16792898,105570.0,105560.0,0.28706784]
[1749344819990,1.35737673,105570.0,105560.0,0.26812236]
[1749344820194,1.03772,105570.0,105560.0,0.67978349]
[1749344820398,1.03772,105570.0,105560.0,0.68930937]
[1749344820577,1.12972,105570.0,105560.0,0.68930937]
[1749344820998,1.12972,105570.0,105560.0,0.71759068]
[1749344821118,1.12972,105570.0,105560.0,0.68930937]